fUST/lending_fUST_20240612
["ID","MTS","AMOUNT","RATE_DAILY","PERIOD"]
[329201270,1718173841980,-500.0,0.00016711,2]
[329201271,1718173841997,-500.0,0.00016711,2]
[329201272,1718173842017,-500.0,0.00016711,2]
[329201273,1718173842036,-505.99340678,0.00016711,2]
[329201274,1718173842047,-500.0,0.00016711,2]
[329201275,1718173842058,-500.0,0.00016711,2]
[329201276,1718173842068,-500.0,0.00016711,2]
[329201277,1718173842083,-1526.71,0.00016712,2]
[329201278,1718173842094,-500.0,0.00016712,2]
[329201279,1718173842106,-500.0,0.00016712,2]
[329201280,1718173842116,-500.0,0.00016712,2]
[329201281,1718173842128,-500.0,0.00016712,2]
[329201282,1718173842138,-500.0,0.00016712,2]
[329201283,1718173842149,-500.0,0.00016712,2]
[329201284,1718173842159,-505.69946728,0.00016712,2]
[329201285,1718173842170,-500.0,0.00016712,2]
[329201286,1718173842181,-703.53,0.00016712,2]
[329201287,1718173842192,-500.0,0.00016712,2]
[329201288,1718173842203,-500.0,0.00016712,2]
[329201289,1718173842214,-500.0,0.00016712,2]
[329201290,1718173842224,-500.0,0.00016712,2]
[329201291,1718173842236,-630.79079905,0.00016712,2]
[329201292,1718173842250,-500.0,0.00016712,2]
[329201293,1718173842262,-4707.62,0.00016712,2]
[329201294,1718173842276,-500.0,0.00016712,2]
[329201295,1718173842289,-500.0,0.00016712,2]
[329201296,1718173842301,-885.7,0.00016712,2]
[329201297,1718173842314,-500.0,0.00016712,2]
[329201298,1718173842330,-854.71,0.00016712,2]
[329201299,1718173842344,-4407.25,0.00016712,2]
[329201300,1718173842356,-500.0,0.00016712,2]
[329201301,1718173842369,-500.0,0.00016712,2]
[329201302,1718173842381,-500.0,0.00016712,2]
[329201303,1718173842397,-500.0,0.00016712,2]
[329201304,1718173842429,-500.0,0.00016712,2]
[329201305,1718173842439,-500.0,0.00016712,2]
[329201306,1718173842453,-500.0,0.00016712,2]
[329201307,1718173842470,-500.0,0.00016712,2]
[329201308,1718173842489,-1234.94,0.00016712,2]
[329201309,1718173842522,-155.83676024,0.00016712,2]
[329201310,1718173842539,-500.0,0.00016712,2]
[329201311,1718173842555,-500.0,0.00016712,2]
[329201312,1718173842575,-500.0,0.00016712,2]
[329201313,1718173842592,-395.55217758,0.00016712,2]
[329201314,1718173842608,-500.0,0.00016712,2]
[329201315,1718173842630,-500.0,0.00016712,2]
[329201316,1718173842641,-500.0,0.00016712,2]
[329201317,1718173842654,-1071.31,0.00016712,2]
[329201318,1718173842666,-628.69,0.00016712,2]
[329201319,1718173842680,-500.0,0.00016712,2]
[329201320,1718173842697,-668.61,0.00016712,2]
[329201321,1718173842708,-500.0,0.00016712,2]
[329201322,1718173842720,-500.0,0.00016712,2]
[329201323,1718173842731,-508.58,0.00016712,2]
[329201324,1718173842742,-500.0,0.00016712,2]
[329201325,1718173842752,-500.0,0.00016712,2]
[329201326,1718173842763,-505.87696066,0.00016712,2]
[329201327,1718173842773,-516.39973191,0.00016712,2]
[329201328,1718173842786,-500.0,0.00016712,2]
[329201329,1718173842811,-500.0,0.00016712,2]
[329201330,1718173842824,-216.4060918,0.00016712,2]
[329201331,1718173842836,-500.0,0.00016712,2]
[329201332,1718173842852,-212.0,0.00016849,2]
[329201333,1718173842866,-882.24798825,0.00016885,2]
[329201334,1718173842879,-595.62849973,0.00016985,2]
[329201335,1718173842892,-500.0,0.00016985,2]
[329201336,1718173842904,-180.37399143,0.00016985,2]
[329201337,1718173842916,-500.0,0.00016985,4]
[329201338,1718173842931,-172.43868174,0.00016985,2]
[329201339,1718173842949,-1674.29,0.00016985,2]
[329201340,1718173842960,-993.51,0.00016985,2]
[329201341,1718173842973,-500.0,0.00016985,2]
[329201342,1718173842990,-250.0,0.00016985,2]
[329201343,1718173843009,-280.97830287,0.00016985,2]
[329201344,1718173843030,-3326.81,0.00016985,2]
[329201345,1718173843047,-500.0,0.00016985,2]
[329201346,1718173843058,-500.0,0.00016985,2]
[329201347,1718173843070,-1526.71,0.00016986,2]
[329201348,1718173843087,-500.0,0.00016986,2]
[329201349,1718173843105,-500.0,0.00016986,2]
[329201350,1718173843122,-500.0,0.00016986,2]
[329201351,1718173843140,-264.71039901,0.00016986,2]
[329201352,1718173843156,-500.0,0.00016986,2]
[329201353,1718173843166,-500.0,0.00016986,2]
[329201354,1718173843179,-500.0,0.00016986,2]
[329201355,1718173843190,-703.53,0.00016986,2]
[329201356,1718173843204,-500.0,0.00016986,2]
[329201357,1718173843216,-500.0,0.00016986,2]
[329201358,1718173843228,-500.0,0.00016986,2]
[329201359,1718173843244,-635.867111,0.00016986,2]
[329201360,1718173843260,-4707.62,0.00016986,2]
[329201361,1718173843272,-500.0,0.00016986,2]
[329201362,1718173843285,-500.0,0.00016986,2]
[329201363,1718173843300,-885.7,0.00016986,2]
[329201364,1718173843313,-500.0,0.00016986,2]
[329201365,1718173843334,-854.71,0.00016986,2]
[329201366,1718173843358,-4407.25,0.00016986,2]
[329201367,1718173843375,-500.0,0.00016986,2]
[329201369,1718173843386,-500.0,0.00016986,2]
[329201370,1718173843411,-500.0,0.00016986,2]
[329201371,1718173843426,-500.0,0.00016986,2]
[329201372,1718173843439,-588.26120182,0.00016986,2]
[329201373,1718173843455,-500.0,0.00016986,2]
[329201374,1718173843472,-500.0,0.00016986,2]
[329201375,1718173843490,-500.0,0.00016986,2]
[329201376,1718173843530,-1234.94,0.00016986,2]
[329201377,1718173843541,-512.43162702,0.00016986,2]
[329201378,1718173843554,-500.0,0.00016986,2]
[329201379,1718173843569,-500.0,0.00016986,2]
[329201380,1718173843583,-500.0,0.00016986,2]
[329201381,1718173843594,-500.0,0.00016986,2]
[329201382,1718173843606,-1071.31,0.00016986,2]
[329201383,1718173843617,-628.69,0.00016986,2]
[329201384,1718173843632,-310.85025111,0.00016986,2]
[329201385,1718173843643,-668.61,0.00016986,2]
[329201386,1718173843659,-500.0,0.00016986,2]
[329201387,1718173843686,-514.81433297,0.00016986,2]
[329201388,1718173843707,-508.58,0.00016986,2]
[329201389,1718173843734,-500.0,0.00016986,2]
[329201390,1718173843768,-500.0,0.00016986,2]
[329201391,1718173843788,-500.0,0.00016986,2]
[329201393,1718173843801,-500.0,0.00016986,2]
[329201395,1718173843817,-212.0,0.00016989,2]
[329201397,1718173843828,-1000.0,0.00017,2]
[329201399,1718173843840,-1000.0,0.00017,2]
[329201402,1718173843860,-212.0,0.00017128,2]
[329201403,1718173843871,-315.67227345,0.00017259,2]
[329201406,1718173843891,-500.0,0.00017259,4]
[329201409,1718173843913,-1674.29,0.00017259,2]
[329201410,1718173843933,-993.51,0.00017259,2]
[329201412,1718173843943,-500.0,0.00017259,2]
[329201414,1718173843965,-250.0,0.00017259,2]
[329201416,1718173843978,-3326.81,0.00017259,2]
[329201417,1718173844004,-500.0,0.00017259,2]
[329201419,1718173844020,-500.0,0.00017259,2]
[329201421,1718173844043,-500.0,0.00017259,2]
[329201422,1718173844055,-1526.71,0.0001726,2]
[329201423,1718173844078,-500.0,0.0001726,2]
[329201424,1718173844098,-500.0,0.0001726,2]
[329201425,1718173844111,-500.0,0.0001726,2]
[329201427,1718173844136,-500.0,0.0001726,2]
[329201429,1718173844159,-500.0,0.0001726,2]
[329201431,1718173844186,-500.0,0.0001726,2]
[329201432,1718173844197,-703.53,0.0001726,2]
[329201434,1718173844208,-509.93422011,0.0001726,2]
[329201436,1718173844220,-566.81306452,0.0001726,2]
[329201437,1718173844232,-4707.62,0.0001726,2]
[329201439,1718173844247,-500.0,0.0001726,2]
[329201440,1718173844259,-885.7,0.0001726,2]
[329201441,1718173844279,-500.0,0.0001726,2]
[329201442,1718173844305,-854.71,0.0001726,2]
[329201443,1718173844316,-4407.25,0.0001726,2]
[329201444,1718173844329,-500.0,0.0001726,2]
[329201445,1718173844340,-500.0,0.0001726,2]
[329201446,1718173844350,-318.1967511,0.0001726,2]
[329201447,1718173844361,-500.0,0.0001726,2]
[329201448,1718173844374,-500.0,0.0001726,2]
[329201449,1718173844387,-500.0,0.0001726,2]
[329201450,1718173844416,-500.0,0.0001726,2]
[329201451,1718173844433,-1234.94,0.0001726,2]
[329201452,1718173844444,-516.53957628,0.0001726,2]
[329201453,1718173844455,-500.0,0.0001726,2]
[329201454,1718173844466,-500.0,0.0001726,2]
[329201455,1718173844477,-500.0,0.0001726,2]
[329201456,1718173844489,-1071.31,0.0001726,2]
[329201457,1718173844501,-628.69,0.0001726,2]
[329201458,1718173844512,-668.61,0.0001726,2]
[329201459,1718173844523,-500.0,0.0001726,2]
[329201460,1718173844535,-508.58,0.0001726,2]
[329201461,1718173844547,-500.0,0.0001726,2]
[329201462,1718173844558,-500.0,0.0001726,2]
[329201463,1718173844569,-500.0,0.0001726,2]
[329201464,1718173844582,-500.0,0.0001726,2]
[329201465,1718173844599,-212.0,0.00017268,2]
[329201466,1718173844611,-212.0,0.00017408,2]
[329201467,1718173844623,-882.24798823,0.00017427,2]
[329201468,1718173844636,-2000.0,0.00017434,2]
[329201469,1718173844660,-500.0,0.00017533,4]
[329201470,1718173844692,-1674.29,0.00017533,2]
[329201471,1718173844713,-993.51,0.00017533,2]
[329201472,1718173844729,-500.0,0.00017533,2]
[329201473,1718173844747,-250.0,0.00017533,2]
[329201474,1718173844781,-3326.81,0.00017533,2]
[329201475,1718173844801,-500.0,0.00017533,2]
[329201476,1718173844829,-500.0,0.00017533,2]
[329201477,1718173844855,-229.78721247,0.00017533,2]
[329201478,1718173844877,-1526.71,0.00017534,2]
[329201479,1718173844892,-500.0,0.00017534,2]
[329201480,1718173844905,-500.0,0.00017534,2]
[329201481,1718173844922,-500.0,0.00017534,2]
[329201482,1718173844934,-500.0,0.00017534,2]
[329201483,1718173844954,-500.0,0.00017534,2]
[329201484,1718173844967,-703.53,0.00017534,2]
[329201485,1718173844981,-4707.62,0.00017534,2]
[329201486,1718173844993,-885.7,0.00017534,2]
[329201487,1718173845006,-500.0,0.00017534,2]
[329201488,1718173845020,-854.71,0.00017534,2]
[329201489,1718173845043,-4407.25,0.00017534,2]
[329201490,1718173845066,-262.28007136,0.00017534,2]
[329201491,1718173845085,-234.66756291,0.00017534,2]
[329201492,1718173845103,-500.0,0.00017534,2]
[329201493,1718173845116,-500.0,0.00017534,2]
[329201494,1718173845128,-500.0,0.00017534,2]
[329201495,1718173845141,-1234.94,0.00017534,2]
[329201496,1718173845165,-500.0,0.00017534,2]
[329201497,1718173845184,-500.0,0.00017534,2]
[329201498,1718173845200,-500.0,0.00017534,2]
[329201499,1718173845226,-1071.31,0.00017534,2]
[329201500,1718173845239,-628.69,0.00017534,2]
[329201501,1718173845252,-668.61,0.00017534,2]
[329201502,1718173845266,-500.0,0.00017534,2]
[329201503,1718173845277,-508.58,0.00017534,2]
[329201504,1718173845289,-500.0,0.00017534,2]
[329201505,1718173845300,-500.0,0.00017534,2]
[329201506,1718173845315,-212.0,0.00017547,2]
[329201507,1718173845326,-212.0,0.00017687,2]
[329201508,1718173845348,-500.0,0.00017807,4]
[329201509,1718173845361,-1674.29,0.00017807,2]
[329201510,1718173845373,-993.51,0.00017807,2]
[329201511,1718173845384,-500.0,0.00017807,2]
[329201512,1718173845408,-250.0,0.00017807,2]
[329201513,1718173845430,-3326.81,0.00017807,2]
[329201514,1718173845451,-1526.71,0.00017808,2]
[329201515,1718173845463,-500.0,0.00017808,2]
[329201516,1718173845475,-294.89911392,0.00017808,2]
[329201517,1718173845487,-500.0,0.00017808,2]
[329201518,1718173845499,-500.0,0.00017808,2]
[329201519,1718173845520,-555.48909075,0.00017808,2]
[329201520,1718173845563,-703.53,0.00017808,2]
[329201521,1718173845582,-4707.62,0.00017808,2]
[329201522,1718173845595,-885.7,0.00017808,2]
[329201523,1718173845609,-500.0,0.00017808,2]
[329201524,1718173845624,-854.71,0.00017808,2]
[329201525,1718173845642,-4407.25,0.00017808,2]
[329201526,1718173845660,-500.0,0.00017808,2]
[329201527,1718173845671,-500.0,0.00017808,2]
[329201528,1718173845685,-500.0,0.00017808,2]
[329201529,1718173845695,-1234.94,0.00017808,2]
[329201530,1718173845710,-500.0,0.00017808,2]
[329201531,1718173845723,-1071.31,0.00017808,2]
[329201532,1718173845740,-628.69,0.00017808,2]
[329201533,1718173845752,-668.61,0.00017808,2]
[329201534,1718173845764,-500.0,0.00017808,2]
[329201535,1718173845780,-508.58,0.00017808,2]
[329201536,1718173845794,-500.0,0.00017808,2]
[329201537,1718173845804,-598.91526891,0.00017808,2]
[329201538,1718173845819,-212.0,0.00017827,2]
[329201539,1718173845831,-1790.45690115,0.00017846,2]
[329201540,1718173845845,-500.0,0.00017897,2]
[329201541,1718173845860,-10491.92816074,0.00017898,2]
[329201542,1718173845871,-212.0,0.00017966,2]
[329201543,1718173845889,-882.24798823,0.00017969,2]
[329201544,1718173845900,-500.0,0.00017999,2]
[329201545,1718173845917,-2765.44251206,0.00018,2]
[329201546,1718173845934,-1355.61945113,0.00018,2]
[329201547,1718173845946,-876.82850055,0.00018,2]
[329201548,1718173845958,-155.02790502,0.00018,2]
[329201549,1718173845970,-155.02635448,0.00018,2]
[329201550,1718173845984,-632.99963654,0.00018,2]
[329201551,1718173845998,-1000.0,0.00018,2]
[329201552,1718173846010,-1036.68456979,0.00018,2]
[329201553,1718173846022,-204.17791001,0.00018,2]
[329201554,1718173846035,-500.0,0.00018081,4]
[329201555,1718173846046,-1674.29,0.00018081,2]
[329201556,1718173846058,-993.51,0.00018081,2]
[329201557,1718173846071,-250.0,0.00018081,2]
[329201558,1718173846084,-3326.81,0.00018081,2]
[329201559,1718173846104,-1526.71,0.00018082,2]
[329201560,1718173846116,-500.0,0.00018082,2]
[329201561,1718173846130,-500.0,0.00018082,2]
[329201562,1718173846142,-703.53,0.00018082,2]
[329201563,1718173846156,-4707.62,0.00018082,2]
[329201564,1718173846174,-885.7,0.00018082,2]
[329201565,1718173846194,-500.0,0.00018082,2]
[329201566,1718173846212,-854.71,0.00018082,2]
[329201567,1718173846223,-4407.25,0.00018082,2]
[329201568,1718173846235,-500.0,0.00018082,2]
[329201569,1718173846250,-500.0,0.00018082,2]
[329201570,1718173846271,-500.0,0.00018082,2]
[329201571,1718173846296,-1234.94,0.00018082,2]
[329201572,1718173846321,-500.0,0.00018082,2]
[329201573,1718173846337,-1071.31,0.00018082,2]
[329201574,1718173846348,-628.69,0.00018082,2]
[329201575,1718173846358,-668.61,0.00018082,2]
[329201576,1718173846370,-500.0,0.00018082,2]
[329201577,1718173846382,-508.58,0.00018082,2]
[329201580,1718173846392,-500.0,0.00018082,2]
[329201583,1718173846425,-212.0,0.00018106,2]
[329201587,1718173846448,-212.0,0.00018246,2]
[329201589,1718173846461,-500.0,0.00018355,4]
[329201591,1718173846472,-1674.29,0.00018355,2]
[329201593,1718173846491,-993.51,0.00018355,2]
[329201595,1718173846515,-250.0,0.00018355,2]
[329201597,1718173846536,-3326.81,0.00018355,2]
[329201599,1718173846548,-500.0,0.00018355,2]
[329201602,1718173846560,-500.0,0.00018355,2]
[329201604,1718173846572,-1526.71,0.00018356,2]
[329201605,1718173846583,-500.0,0.00018356,2]
[329201608,1718173846600,-500.0,0.00018356,2]
[329201610,1718173846613,-703.53,0.00018356,2]
[329201612,1718173846624,-4707.62,0.00018356,2]
[329201614,1718173846639,-885.7,0.00018356,2]
[329201616,1718173846650,-500.0,0.00018356,2]
[329201617,1718173846661,-854.71,0.00018356,2]
[329201618,1718173846672,-4407.25,0.00018356,2]
[329201619,1718173846684,-500.0,0.00018356,2]
[329201620,1718173846697,-500.0,0.00018356,2]
[329201621,1718173846707,-500.0,0.00018356,2]
[329201622,1718173846718,-1234.94,0.00018356,2]
[329201623,1718173846730,-500.0,0.00018356,2]
[329201624,1718173846741,-1071.31,0.00018356,2]
[329201625,1718173846752,-628.69,0.00018356,2]
[329201626,1718173846763,-668.61,0.00018356,2]
[329201627,1718173846774,-500.0,0.00018356,2]
[329201628,1718173846784,-508.58,0.00018356,2]
[329201629,1718173846795,-500.0,0.00018356,2]
[329201630,1718173846806,-606.91207968,0.000185,2]
[329201631,1718173846817,-882.24798823,0.00018511,2]
[329201632,1718173846827,-166.666666,0.00018575,2]
[329201633,1718173846838,-500.0,0.00018629,4]
[329201634,1718173846850,-1674.29,0.00018629,2]
[329201635,1718173846863,-993.51,0.00018629,2]
[329201636,1718173846873,-250.0,0.00018629,2]
[329201637,1718173846885,-3326.81,0.00018629,2]
[329201638,1718173846896,-500.0,0.00018629,2]
[329201639,1718173846907,-1526.71,0.0001863,2]
[329201640,1718173846921,-500.0,0.0001863,2]
[329201641,1718173846937,-500.0,0.0001863,2]
[329201642,1718173846967,-703.53,0.0001863,2]
[329201643,1718173846979,-4707.62,0.0001863,2]
[329201644,1718173846996,-885.7,0.0001863,2]
[329201645,1718173847010,-500.0,0.0001863,2]
[329201646,1718173847028,-854.71,0.0001863,2]
[329201647,1718173847043,-4407.25,0.0001863,2]
[329201648,1718173847054,-500.0,0.0001863,2]
[329201649,1718173847067,-500.0,0.0001863,2]
[329201650,1718173847245,-500.0,0.0001863,2]
[329201651,1718173847258,-1234.94,0.0001863,2]
[329201652,1718173847270,-500.0,0.0001863,2]
[329201653,1718173847285,-1071.31,0.0001863,2]
[329201654,1718173847303,-628.69,0.0001863,2]
[329201655,1718173847321,-668.61,0.0001863,2]
[329201656,1718173847347,-310.98311515,0.0001863,2]
[329201657,1718173847364,-508.58,0.0001863,2]
[329201658,1718173847383,-500.0,0.0001863,2]
[329201659,1718173847407,-250.0,0.0001863,2]
[329201660,1718173847438,-600.0,0.00018674,2]
[329201661,1718173847452,-794.7,0.00018737,2]
[329201663,1718173847466,-504.828,0.00018841,2]
[329201665,1718173847480,-5281.92082876,0.0001886,2]
[329201666,1718173847493,-600.0,0.00018868,2]
[329201667,1718173847504,-794.7,0.00018876,2]
[329201668,1718173847520,-500.0,0.00018899,2]
[329201669,1718173847530,-7794.51442956,0.000189,2]
[329201670,1718173847549,-500.0,0.00018903,4]
[329201671,1718173847560,-1674.29,0.00018903,2]
[329201672,1718173847572,-993.51,0.00018903,2]
[329201673,1718173847585,-250.0,0.00018903,2]
[329201674,1718173847618,-3326.81,0.00018903,2]
[329201675,1718173847630,-500.0,0.00018903,2]
[329201676,1718173847641,-1526.71,0.00018904,2]
[329201677,1718173847657,-267.62400704,0.00018904,2]
[329201678,1718173847668,-500.0,0.00018904,2]
[329201679,1718173847679,-703.53,0.00018904,2]
[329201680,1718173847690,-4707.62,0.00018904,2]
[329201681,1718173847705,-885.7,0.00018904,2]
[329201682,1718173847716,-500.0,0.00018904,2]
[329201683,1718173847727,-854.71,0.00018904,2]
[329201684,1718173847742,-4407.25,0.00018904,2]
[329201685,1718173847753,-500.0,0.00018904,2]
[329201686,1718173847765,-500.0,0.00018904,2]
[329201687,1718173847784,-500.0,0.00018904,2]
[329201688,1718173847795,-1234.94,0.00018904,2]
[329201689,1718173847807,-500.0,0.00018904,2]
[329201690,1718173847820,-1071.31,0.00018904,2]
[329201691,1718173847831,-628.69,0.00018904,2]
[329201692,1718173847844,-668.61,0.00018904,2]
[329201693,1718173847859,-508.58,0.00018904,2]
[329201694,1718173847870,-500.0,0.00018904,2]
[329201695,1718173847881,-285.48237256,0.00018978,2]
[329201696,1718173847894,-625.19513025,0.00018991,2]
[329201697,1718173847906,-500.0,0.00018993,2]
[329201698,1718173847917,-500.0,0.00018993,2]
[329201699,1718173847928,-500.0,0.00018993,2]
[329201700,1718173847939,-443.21,0.00018993,2]
[329201701,1718173847950,-238040.19893405,0.00018994,2]
[329201702,1718173847961,-394.20283113,0.00019,2]
[329201703,1718173847972,-7270.73643792,0.00019,2]
[329201704,1718173847985,-163.14541634,0.00019,2]
[329201705,1718173847996,-1000.0,0.00019,2]
[329201706,1718173848013,-33000.0,0.00019,2]
[329201707,1718173848030,-794.7,0.00019016,2]
[329201708,1718173848042,-1326.37407882,0.00019026,2]
[329201709,1718173848052,-30523.24284274,0.00019028,2]
[329201710,1718173848063,-22934.07432714,0.00019029,2]
[329201711,1718173848074,-19731.29512639,0.0001903,2]
[329201712,1718173848085,-1326.37407882,0.00019034,2]
[329201713,1718173848096,-1880.98668909,0.00019035,2]
[329201714,1718173848107,-22934.07432714,0.00019036,2]
[329201715,1718173848117,-22934.07432714,0.00019036,2]
[329201716,1718173848131,-1880.98668909,0.00019041,2]
[329201717,1718173848143,-1326.37407882,0.00019047,2]
[329201718,1718173848156,-19731.29512639,0.00019049,2]
[329201719,1718173848169,-22934.07432714,0.00019051,2]
[329201720,1718173848188,-1326.37407882,0.00019051,2]
[329201721,1718173848200,-30523.24284274,0.00019052,2]
[329201722,1718173848219,-882.24798823,0.00019053,2]
[329201723,1718173848231,-19731.29512639,0.00019055,2]
[329201724,1718173848244,-1880.98668909,0.00019059,2]
[329201725,1718173848260,-1326.37407882,0.0001906,2]
[329201726,1718173848278,-600.0,0.00019063,2]
[329201727,1718173848295,-19731.29512639,0.00019072,2]
[329201728,1718173848309,-22934.07432714,0.00019075,2]
[329201729,1718173848329,-240.94892282,0.00019077,2]
[329201730,1718173848341,-19731.29512639,0.0001908,2]
[329201731,1718173848352,-1880.98668909,0.00019082,2]
[329201732,1718173848366,-30523.24284274,0.00019083,2]
[329201733,1718173848382,-1880.98668909,0.00019089,2]
[329201734,1718173848409,-14449.77353832,0.0001909,2]
[329201735,1718173848428,-115602.46863916,0.00019091,2]
[329201736,1718173848440,-19310.35733687,0.00019091,2]
[329201737,1718173848457,-27036.89298663,0.00019092,2]
[329201738,1718173848495,-27499.19033753,0.00019092,2]
[329201739,1718173848512,-27597.65550837,0.00019092,2]
[329201740,1718173849173,-500.0,0.00016438,2]
[329201741,1718173849209,-500.0,0.00016438,2]
[329201742,1718173849221,-500.0,0.00016438,2]
[329201743,1718173849237,-174.79371648,0.00016712,2]
[329201744,1718173849260,-325.20628352,0.00016712,2]
[329201745,1718173849277,-500.0,0.00016712,2]
[329201746,1718173849300,-500.0,0.00016986,2]
[329201747,1718173849323,-500.0,0.00016986,2]
[329201748,1718173849365,-500.0,0.0001726,2]
[329201749,1718173849409,-500.0,0.00017534,2]
[329201750,1718173849427,-504.18,0.00017534,2]
[329201751,1718173849441,-500.0,0.00017808,2]
[329201752,1718173849460,-500.0,0.00018082,2]
[329201753,1718173849473,-500.0,0.00018356,2]
[329201754,1718173849484,-599.74304837,0.0001863,2]
[329201755,1718173849497,-2733.20620964,0.00019092,2]
[329201756,1718174016624,5000.0,0.00023,30]
[329201758,1718174528764,1096.85,0.00025,60]
[329201761,1718174781919,5198.91482765,0.000181,6]
[329201763,1718174830258,5080.38430031,0.000161,6]
[329201783,1718175034674,-2037.59250395,0.00014182,2]
[329201784,1718175034686,-250.0,0.00014183,2]
[329201785,1718175034696,-2683.16682461,0.00014528,2]
[329201786,1718175034706,-300.0,0.00014534,2]
[329201787,1718175034717,-24900.0,0.00014535,2]
[329201788,1718175034727,-256.9474619,0.00014685,2]
[329201789,1718175034738,-489.4554539,0.000156,2]
[329201790,1718175034749,-1794.97487888,0.00015608,2]
[329201791,1718175034759,-190.26891304,0.00015612,2]
[329201792,1718175034772,-165.60851209,0.00015709,2]
[329201793,1718175034783,-1337.94825593,0.00015709,2]
[329201794,1718175034793,-312.12427823,0.00015709,2]
[329201795,1718175034804,-214.43607004,0.00015709,2]
[329201796,1718175034814,-244.05274113,0.00015709,2]
[329201797,1718175034823,-161.00777066,0.00015709,2]
[329201798,1718175034833,-183.55903008,0.00015709,2]
[329201799,1718175034843,-177.24113292,0.00015709,2]
[329201800,1718175034853,-195.75355593,0.00015709,2]
[329201801,1718175034864,-693.88401201,0.00015709,2]
[329201802,1718175034873,-155.22060905,0.00015709,2]
[329201803,1718175034896,-155.14822059,0.00015709,2]
[329201804,1718175034907,-252.15223849,0.00015709,2]
[329201805,1718175034918,-195.00432037,0.0001571,2]
[329201806,1718175034928,-250.04242075,0.0001571,2]
[329201807,1718175034938,-155.12071913,0.0001571,2]
[329201808,1718175034948,-2416.5154688,0.0001571,2]
[329201809,1718175034958,-310.02774165,0.0001571,2]
[329201810,1718175034968,-272.44132449,0.0001571,2]
[329201811,1718175034977,-155.46393753,0.0001571,2]
[329201812,1718175034986,-599.50993839,0.0001571,2]
[329201813,1718175034997,-199.48024338,0.0001571,2]
[329201814,1718175035007,-200.88962575,0.0001571,2]
[329201815,1718175035018,-338.22193733,0.0001571,2]
[329201816,1718175035027,-237.30946004,0.0001571,2]
[329201817,1718175035038,-155.4703535,0.0001571,2]
[329201818,1718175035048,-156.10400682,0.0001571,2]
[329201819,1718175035059,-241.0467815,0.00015711,2]
[329201820,1718175035074,-258.39178265,0.00015711,2]
[329201821,1718175035084,-5854.43878638,0.00015711,2]
[329201856,1718175046627,-1173.66402396,0.00015711,2]
[329201857,1718175046640,-70.86281044,0.00015711,2]
[329201858,1718175046650,-6116.78909025,0.00015711,2]
[329201859,1718175046663,-67112.80420268,0.00015711,2]
[329201860,1718175046673,-300.0,0.00015987,2]
[329201861,1718175046684,-2913.25551338,0.000161,2]
[329201862,1718175046694,-1872.80711574,0.000161,2]
[329201863,1718175046704,-1872.80711574,0.000161,2]
[329201864,1718175046714,-1872.80711574,0.000161,2]
[329201865,1718175046725,-1872.80711574,0.000161,2]
[329201866,1718175046736,-2434.06725291,0.00016338,2]
[329201867,1718175046747,-2000.0,0.00016338,2]
[329201868,1718175046757,-11101.9638547,0.00016437,2]
[329201869,1718175046768,-264.33269807,0.00016438,2]
[329201870,1718175046778,-500.0,0.00016438,2]
[329201871,1718175046789,-500.0,0.00016438,2]
[329201872,1718175046799,-500.0,0.00016438,2]